bitfinex/quotes_BTCUSD_20250224
["timestamp","ask_amount","ask_price","bid_price","bid_amount"]
[1740409116894,0.17032673,94816.0,94815.0,2.09021474]
[1740409117187,0.32852773,94816.0,94815.0,2.09021474]
[1740409117810,0.02032673,94816.0,94815.0,2.09021474]
[1740409119022,0.02032673,94816.0,94815.0,2.09106584]
[1740409119023,0.02202893,94816.0,94815.0,2.09106584]
[1740409120881,0.33022993,94816.0,94815.0,2.09106584]
[1740409121089,0.17202893,94816.0,94815.0,2.09106584]
[1740409121721,0.17202893,94816.0,94815.0,2.14046584]
[1740409122138,0.26465126,94816.0,94815.0,2.14046584]
[1740409122542,0.26465126,94816.0,94815.0,2.24311153]
[1740409122747,0.26465126,94816.0,94815.0,2.31951153]
[1740409123163,0.11465126,94816.0,94815.0,2.31951153]
[1740409123371,0.11465126,94816.0,94815.0,2.21686584]
[1740409123588,0.09432453,94816.0,94815.0,2.21686584]
[1740409124836,0.09432453,94816.0,94815.0,2.53826584]
[1740409125249,0.0017022,94816.0,94815.0,2.53826584]
[1740409125678,0.09262233,94824.0,94818.0,0.0785]
[1740409125981,0.09262233,94824.0,94820.0,0.0766]
[1740409126261,0.09262233,94824.0,94820.0,0.31586316]
[1740409126537,0.09262233,94824.0,94821.0,0.3214]
[1740409126713,0.09262233,94824.0,94822.0,0.0766]
[1740409126913,0.08361372,94824.0,94822.0,0.26201778]
[1740409127147,0.08361372,94824.0,94823.0,0.22714569]
[1740409127349,0.08361372,94824.0,94823.0,0.55669676]
[1740409128572,0.08361372,94824.0,94823.0,0.45405107]
[1740409128982,0.07080312,94824.0,94823.0,0.45405107]
[1740409129632,0.15,94838.0,94823.0,0.45405107]
[1740409129845,0.01949261,94837.0,94823.0,0.45405107]
[1740409130462,0.001702,94824.0,94823.0,0.45405107]
[1740409130677,0.001702,94824.0,94823.0,0.49945618]
[1740409130918,0.00950556,94837.0,94823.0,0.49945618]
[1740409131328,0.00950556,94837.0,94823.0,0.44401107]
[1740409131569,0.15950556,94837.0,94823.0,0.44401107]
[1740409131677,0.00950556,94837.0,94823.0,0.44401107]
[1740409132124,0.01150556,94837.0,94823.0,0.44401107]
[1740409132334,0.00950556,94837.0,94823.0,0.44401107]
[1740409132542,0.00950556,94837.0,94823.0,0.49841218]
[1740409132972,0.0017016,94843.0,94839.0,0.00197962]
[1740409133804,0.0017016,94843.0,94823.0,0.49841218]
[1740409133805,0.00102038,94837.0,94823.0,0.49841218]
[1740409133939,0.0017016,94843.0,94823.0,0.49841218]
[1740409134379,0.0067016,94843.0,94823.0,0.49841218]
[1740409134580,0.0067016,94843.0,94824.0,0.04984122]
[1740409134822,0.003,94837.0,94824.0,0.3259933]
[1740409135171,0.3259,94859.0,94824.0,0.3259933]
[1740409135300,0.158157,94843.0,94824.0,0.3259933]
[1740409135508,0.002,94843.0,94824.0,0.3259933]
[1740409135710,0.0017016,94851.0,94825.0,0.02998555]
[1740409135898,0.0017016,94851.0,94825.0,0.28393004]
[1740409136097,0.0017016,94851.0,94823.0,0.12446]
[1740409136098,0.2,94844.0,94823.0,0.07567033]
[1740409136295,0.0163865,94843.0,94823.0,0.01]
[1740409136503,0.158187,94824.0,94823.0,0.07567033]
[1740409136698,0.0163865,94843.0,94823.0,0.07567033]
[1740409136919,0.15,94841.0,94823.0,0.07567033]
[1740409137123,0.308187,94824.0,94823.0,0.07567033]
[1740409137348,0.308187,94824.0,94823.0,0.08323736]
[1740409137547,0.311187,94824.0,94823.0,0.07567033]
[1740409138977,0.29755246,94824.0,94823.0,0.07567033]
[1740409140753,0.29455246,94824.0,94823.0,0.07567033]
[1740409140958,0.28707278,94824.0,94823.0,0.07567033]
[1740409142434,0.005702,94824.0,94823.0,0.07567033]
[1740409142654,0.005702,94824.0,94823.0,0.16453736]
[1740409142868,0.09280672,94825.0,94823.0,0.16453736]
[1740409142869,0.06260823,94825.0,94823.0,0.16453736]
[1740409143089,0.05119872,94825.0,94824.0,0.02130374]
[1740409144759,0.05119872,94825.0,94824.0,0.02330374]
[1740409144974,0.03872632,94825.0,94824.0,0.02130374]
[1740409145383,0.001,94825.0,94824.0,0.02830374]
[1740409145738,0.001,94825.0,94824.0,0.20944405]
[1740409146771,0.001,94825.0,94824.0,0.18814031]
[1740409146970,0.14514742,94832.0,94824.0,0.007]
[1740409147173,0.158184,94826.0,94824.0,0.007]
[1740409147348,0.158183,94827.0,94824.0,0.007]
[1740409147553,0.38894085,94850.0,94823.0,0.14358099]
[1740409147554,0.01454085,94848.0,94823.0,0.14358099]
[1740409147766,0.158186,94825.0,94824.0,0.003]
[1740409147978,0.158186,94825.0,94823.0,0.14358099]
[1740409148175,0.01454085,94844.0,94823.0,0.14358099]
[1740409148377,0.41018194,94847.0,94823.0,0.14358099]
[1740409148378,0.3259,94847.0,94824.0,0.002]
[1740409148634,0.58526,94850.0,94823.0,0.14358099]
[1740409148835,0.58526,94850.0,94824.0,0.0143581]
[1740409148836,0.210889,94837.0,94824.0,0.0143581]
[1740409149063,0.01454085,94848.0,94824.0,0.0173581]
[1740409149306,0.15,94836.0,94824.0,0.0173581]
[1740409149473,0.15,94832.0,94824.0,0.0143581]
[1740409150514,0.15,94841.0,94823.0,0.14358099]
[1740409150959,0.13879969,94841.0,94823.0,0.14358099]
[1740409151084,0.158164,94838.0,94823.0,0.14358099]
[1740409151481,0.21088,94841.0,94823.0,0.14358099]
[1740409151675,0.210874,94843.0,94823.0,0.14358099]
[1740409151882,0.210874,94843.0,94824.0,0.0143581]
[1740409151883,0.158166,94837.0,94824.0,0.0143581]
[1740409152083,0.210874,94843.0,94824.0,0.0143581]
[1740409152297,0.158169,94835.0,94824.0,0.0143581]
[1740409152538,0.002,94841.0,94824.0,0.0143581]
[1740409152767,0.158169,94836.0,94824.0,0.0143581]
[1740409152999,0.002,94841.0,94825.0,0.01579391]
[1740409153000,0.13759789,94835.0,94825.0,0.01579391]
[1740409153935,0.210866,94847.0,94825.0,0.01579391]
[1740409154168,0.003,94843.0,94825.0,0.01579391]
[1740409154451,0.003,94843.0,94826.0,0.08254595]
[1740409154688,0.001702,94837.0,94828.0,0.0467]
[1740409154938,0.001702,94837.0,94828.0,0.10473039]
[1740409156334,0.151702,94837.0,94828.0,0.05803039]
[1740409156529,0.151702,94837.0,94827.0,0.02427719]
[1740409156864,0.14056305,94837.0,94827.0,0.02427719]
[1740409157114,0.14056305,94837.0,94828.0,0.0575807]
[1740409157494,0.09284639,94846.0,94828.0,0.0575807]
[1740409157793,0.00184512,94845.0,94828.0,0.0575807]
[1740409158154,0.00184512,94845.0,94826.0,0.0818]
[1740409158340,0.210878,94842.0,94828.0,0.03229266]
[1740409158572,0.158158,94842.0,94826.0,0.13747876]
[1740409158784,0.158154,94844.0,94828.0,0.04267695]
[1740409159011,0.15,94843.0,94842.0,0.01294591]
[1740409159218,0.13705409,94843.0,94823.0,0.010851]
[1740409159424,0.158155,94844.0,94826.0,0.16825484]
[1740409159634,0.158157,94843.0,94824.0,0.0087751]
[1740409159891,0.158158,94842.0,94826.0,0.0340768]
[1740409160098,0.15815,94847.0,94824.0,0.0087751]
[1740409160319,0.004,94845.0,94826.0,0.03466153]
[1740409160527,0.0017016,94851.0,94827.0,0.00542876]
[1740409161380,0.15,94841.0,94827.0,0.00542876]
[1740409161589,0.0017016,94851.0,94826.0,0.11630704]
[1740409161590,0.15,94832.0,94826.0,0.11630704]
[1740409161791,0.15,94832.0,94824.0,0.0087751]
[1740409162013,0.15,94832.0,94826.0,0.02840182]
[1740409162218,0.15,94832.0,94824.0,0.0087751]
[1740409162442,0.15,94832.0,94826.0,0.03624476]
[1740409162650,0.15,94836.0,94824.0,0.0087751]
[1740409162862,0.15,94836.0,94826.0,0.03405501]
[1740409163077,0.13914812,94836.0,94824.0,0.0087751]
[1740409163252,0.29731512,94836.0,94826.0,0.03831304]
[1740409163538,0.158164,94839.0,94824.0,0.0087751]
[1740409163751,0.158164,94839.0,94825.0,0.01514332]
[1740409163975,0.0017016,94851.0,94824.0,0.0087751]
[1740409164189,0.002,94841.0,94824.0,0.0087751]
[1740409164397,0.160159,94841.0,94824.0,0.0087751]
[1740409164645,0.158159,94841.0,94824.0,0.04058189]
[1740409164796,0.001,94839.0,94824.0,0.04058189]
[1740409165151,0.21087,94845.0,94841.0,0.01081983]
[1740409165260,0.308157,94842.0,94841.0,0.01081983]
[1740409165877,0.37189785,94842.0,94841.0,0.01081983]
[1740409166074,0.308187,94824.0,94823.0,0.12509634]
[1740409166281,0.308187,94824.0,94823.0,0.010851]
[1740409166489,0.308187,94824.0,94823.0,0.12509634]
[1740409167117,0.29503605,94824.0,94823.0,0.12509634]
[1740409168920,0.28427383,94824.0,94823.0,0.12509634]
[1740409169266,0.28427383,94824.0,94823.0,0.13760597]
[1740409169464,0.308187,94824.0,94823.0,0.13760597]
[1740409169709,0.308187,94824.0,94823.0,0.12509634]
[1740409170084,0.15,94824.0,94823.0,0.12509634]
[1740409170307,0.308187,94824.0,94823.0,0.11809634]
[1740409170512,0.15,94824.0,94823.0,0.11809634]
[1740409170915,0.13740976,94824.0,94823.0,0.11809634]
[1740409171113,0.13740976,94824.0,94823.0,0.12990597]
[1740409171313,0.13740976,94824.0,94823.0,0.11809634]
[1740409172988,0.12574833,94824.0,94823.0,0.11809634]
[1740409173192,0.28393533,94824.0,94823.0,0.11809634]
[1740409173403,0.12574833,94824.0,94823.0,0.11809634]
[1740409174439,0.0017018,94837.0,94823.0,0.11809634]
[1740409174682,0.0017018,94837.0,94824.0,0.01676963]
[1740409175102,0.01638626,94847.0,94841.0,0.0131053]
[1740409175307,0.15817,94835.0,94824.0,0.01676963]
[1740409175513,0.15184541,94845.0,94824.0,0.01676963]
[1740409175625,0.15,94834.0,94824.0,0.01676963]
[1740409175826,0.15,94834.0,94825.0,0.0184466]
[1740409176442,0.15,94836.0,94825.0,0.0184466]
[1740409176873,0.13908522,94836.0,94827.0,0.0813]
[1740409177088,0.13908522,94836.0,94828.0,0.00074581]
[1740409177089,0.001,94834.0,94828.0,0.00074581]
[1740409177288,0.001,94834.0,94827.0,0.10645811]
[1740409177497,0.001,94834.0,94828.0,0.01783557]
[1740409177703,0.001,94834.0,94829.0,0.00074557]
[1740409177914,0.210802,94876.0,94829.0,0.08502738]
[1740409178123,0.07808536,94879.0,94830.0,0.17954569]
[1740409178346,0.2808,94887.0,94830.0,0.17954569]
[1740409178347,0.158115,94868.0,94832.0,0.1223]
[1740409178560,0.210804,94875.0,94833.0,0.05243585]
[1740409178762,0.210804,94875.0,94833.0,0.1893461]
[1740409178983,0.23670444,94887.0,94840.0,0.0816]
[1740409179192,0.158112,94870.0,94840.0,0.11462475]
[1740409179404,0.15,94868.0,94840.0,0.11462475]
[1740409179610,0.308114,94868.0,94841.0,0.01989067]
[1740409179823,0.15,94849.0,94841.0,0.01989067]
[1740409180038,0.03670444,94867.0,94841.0,0.01989067]
[1740409180232,0.00184493,94866.0,94841.0,0.01989067]
[1740409180520,0.15,94853.0,94840.0,0.11462475]
[1740409180896,0.13849822,94853.0,94840.0,0.11462475]
[1740409181223,0.13849822,94853.0,94841.0,0.005]
[1740409181422,0.13849822,94853.0,94840.0,0.11462475]
[1740409181635,0.03670444,94865.0,94840.0,0.11462475]
[1740409181848,0.210855,94852.0,94841.0,0.01146248]
[1740409182049,0.03670444,94865.0,94840.0,0.11462475]
[1740409182290,0.158147,94849.0,94840.0,0.03302475]
[1740409182489,0.09317994,94854.0,94832.0,0.13939493]
[1740409182622,0.158142,94851.0,94832.0,0.13939493]
[1740409182823,0.210855,94852.0,94851.0,0.01268099]
[1740409183027,0.15,94851.0,94833.0,0.02360305]
[1740409183226,0.15,94849.0,94833.0,0.02360305]
[1740409184073,0.15,94849.0,94833.0,0.02403691]
[1740409184271,0.09317994,94854.0,94833.0,0.02603691]
[1740409184491,0.09317994,94854.0,94834.0,0.02442318]
[1740409184735,0.09317994,94854.0,94835.0,0.00074514]
[1740409184904,0.0812608,94854.0,94835.0,0.00074514]
[1740409185075,0.0812608,94854.0,94836.0,0.0781]
[1740409185276,0.0812608,94854.0,94836.0,0.11313125]
[1740409185503,0.0812608,94854.0,94837.0,0.01853883]
[1740409185889,0.308141,94852.0,94837.0,0.01853883]
[1740409186090,0.0812608,94854.0,94837.0,0.01853883]
[1740409186318,0.15,94851.0,94837.0,0.01853883]
[1740409186553,0.15,94847.0,94836.0,0.03503125]
[1740409186733,0.15,94847.0,94833.0,0.00143386]
[1740409186904,0.15,94847.0,94836.0,0.03543018]
[1740409186905,0.13834004,94847.0,94836.0,0.03543018]
[1740409187106,0.13834004,94847.0,94833.0,0.00043386]
[1740409187313,0.13834004,94847.0,94836.0,0.04074721]
[1740409187512,0.002,94854.0,94838.0,0.0758]
[1740409187717,0.002,94854.0,94838.0,0.10268381]
[1740409188636,0.158144,94850.0,94838.0,0.10268381]
[1740409188897,0.210852,94853.0,94850.0,0.01204912]
[1740409189031,0.002,94854.0,94853.0,0.01204912]
[1740409189229,0.13995088,94855.0,94838.0,0.10268381]
[1740409189439,0.13995088,94855.0,94839.0,0.01495177]
[1740409190239,0.03670444,94882.0,94839.0,0.01495177]
[1740409190496,0.210828,94864.0,94839.0,0.01495177]
[1740409190699,0.210814,94870.0,94839.0,0.01595177]
[1740409190875,0.210819,94868.0,94864.0,0.01311927]
[1740409191072,0.210819,94868.0,94839.0,0.01595177]
[1740409191073,0.14500973,94860.0,94839.0,0.01595177]
[1740409191337,0.210805,94874.0,94840.0,0.01186356]
[1740409191649,0.308103,94875.0,94841.0,0.08224479]
[1740409191857,0.15,94875.0,94841.0,0.08224479]
[1740409192067,0.002,94882.0,94850.0,0.1269]
[1740409192272,0.158094,94881.0,94851.0,0.00074425]
[1740409192442,0.15,94880.0,94852.0,0.02119262]
[1740409192648,0.002,94882.0,94852.0,0.02119262]
[1740409192649,0.002,94882.0,94853.0,0.10338994]
[1740409192808,0.002,94882.0,94853.0,0.13859153]
[1740409193024,0.158089,94884.0,94853.0,0.13859153]
[1740409193235,0.158088,94884.0,94853.0,0.13859153]
[1740409193445,0.158088,94884.0,94854.0,0.05291151]
[1740409193652,0.308086,94885.0,94854.0,0.08853757]
[1740409193862,0.001,94860.0,94854.0,0.08853757]
[1740409194064,0.360782,94885.0,94854.0,0.08853757]
[1740409194264,0.002,94884.0,94855.0,0.04235578]
[1740409194529,0.002,94884.0,94856.0,0.000744]
[1740409194729,0.15,94888.0,94857.0,0.0806]
[1740409194903,0.002,94885.0,94860.0,0.0803]
[1740409195112,0.002,94885.0,94861.0,0.14949163]
[1740409195316,0.002,94885.0,94862.0,0.0810437]
[1740409195542,0.002,94885.0,94862.0,0.11429258]
[1740409196105,0.158072,94894.0,94865.0,0.0762]
[1740409196317,0.158076,94892.0,94865.0,0.11507118]
[1740409196638,0.002,94884.0,94866.0,0.02959991]
[1740409196839,0.002,94884.0,94866.0,0.06959274]
[1740409197001,0.002,94885.0,94866.0,0.06959274]
[1740409197202,0.15,94890.0,94866.0,0.06959274]
[1740409197603,0.15,94888.0,94866.0,0.06959274]
[1740409197836,0.15,94891.0,94867.0,0.01955927]
[1740409198077,0.308076,94891.0,94867.0,0.01955927]
[1740409198217,0.002,94885.0,94867.0,0.01955927]
[1740409198628,0.002,94885.0,94865.0,0.15428316]
[1740409198832,0.002,94892.0,94891.0,0.01095868]
[1740409199077,0.160074,94892.0,94891.0,0.01095868]
[1740409199465,0.15,94893.0,94891.0,0.01095868]
[1740409199668,0.158074,94892.0,94891.0,0.01095868]
[1740409199865,0.158074,94892.0,94891.0,0.00895868]
[1740409200050,0.15817018,94892.0,94891.0,0.00895868]
[1740409200248,0.15817018,94892.0,94891.0,0.00848868]
[1740409200456,0.16017018,94892.0,94891.0,0.00848868]
[1740409201035,0.15,94879.0,94865.0,0.01227184]
[1740409201266,0.15,94889.0,94866.0,0.00620718]
[1740409201489,0.00209618,94892.0,94867.0,0.000744]
[1740409201760,0.00184425,94891.0,94866.0,0.00620718]
[1740409202010,0.308119,94865.0,94864.0,0.02654346]
[1740409202254,0.308119,94865.0,94852.0,0.0464]
[1740409202255,0.15,94864.0,94852.0,0.03143185]
[1740409202534,0.15,94865.0,94839.0,0.0464]
[1740409202785,0.15,94852.0,94840.0,0.00971795]
[1740409203013,0.15,94853.0,94839.0,0.0464]
[1740409203014,0.0795,94868.0,94839.0,0.0464]
[1740409203245,0.0795,94868.0,94839.0,0.07894111]
[1740409203479,0.15,94850.0,94839.0,0.07894111]
[1740409203714,0.15,94850.0,94839.0,0.0464]
[1740409203951,0.15,94850.0,94840.0,0.002]
[1740409204190,0.15,94850.0,94841.0,0.01455069]
[1740409204427,0.15,94851.0,94841.0,0.01455069]
[1740409204668,0.308161,94840.0,94839.0,0.02172467]
[1740409204910,0.308161,94840.0,94839.0,0.00043386]
[1740409205135,0.15,94840.0,94839.0,0.00043386]
[1740409205961,0.308161,94840.0,94839.0,0.00343386]
[1740409206219,0.15,94840.0,94839.0,0.00343386]
[1740409206868,0.15,94840.0,94839.0,0.00043386]
[1740409207077,0.15,94840.0,94839.0,0.00443386]
[1740409207200,0.308161,94840.0,94839.0,0.00443386]
[1740409207417,0.308161,94840.0,94839.0,0.03545711]
[1740409208442,0.40430185,94840.0,94839.0,0.03545711]
[1740409208693,0.40430185,94840.0,94839.0,0.03145711]
[1740409209039,0.40430185,94840.0,94839.0,0.03345711]
[1740409209465,0.60430185,94840.0,94839.0,0.03345711]
[1740409210049,0.63865629,94840.0,94839.0,0.03145711]
[1740409210253,0.83865629,94840.0,94839.0,0.03145711]
[1740409210453,0.83965629,94840.0,94839.0,0.03145711]
[1740409211915,0.82631606,94840.0,94839.0,0.03145711]
[1740409212724,0.82631606,94840.0,94837.0,6.1e-07]
[1740409212725,0.17270485,94838.0,94837.0,6.1e-07]
[1740409212926,0.29318705,94838.0,94837.0,6.1e-07]
[1740409213184,0.29134123,94838.0,94837.0,0.02832853]
[1740409214127,0.44134123,94838.0,94837.0,0.02832853]
[1740409214325,0.44134123,94838.0,94837.0,5.3e-07]
[1740409214534,0.308187,94824.0,94823.0,0.003851]
[1740409214736,0.32272785,94824.0,94823.0,0.003851]
[1740409214955,0.32272785,94824.0,94823.0,0.01880893]
[1740409215765,0.32372785,94824.0,94823.0,0.01880893]
[1740409216192,0.159187,94824.0,94823.0,0.01380893]
[1740409216509,0.308201,94816.0,94815.0,1.91580219]
[1740409216714,0.308201,94816.0,94815.0,1.87418679]
[1740409216933,0.308201,94816.0,94815.0,1.91580219]
[1740409218446,0.309201,94816.0,94815.0,1.91580219]
[1740409219675,0.32374185,94816.0,94815.0,1.91580219]
[1740409219907,0.40374185,94816.0,94815.0,1.91580219]
[1740409220164,0.60374185,94816.0,94815.0,1.91580219]
[1740409220578,0.40374185,94816.0,94815.0,1.91580219]
[1740409220794,0.60374185,94816.0,94815.0,1.91580219]
[1740409221202,0.60370185,94816.0,94815.0,1.91580219]
[1740409221403,0.60270185,94816.0,94815.0,1.91580219]
[1740409221606,0.60370185,94816.0,94815.0,1.91580219]
[1740409222024,0.40370185,94816.0,94815.0,1.91580219]
[1740409222459,0.309161,94816.0,94815.0,1.91580219]
[1740409223928,0.29877795,94816.0,94815.0,1.91580219]
[1740409224590,0.159201,94816.0,94815.0,1.91580219]
[1740409225604,0.158201,94816.0,94815.0,1.91580219]
[1740409225849,0.159201,94816.0,94815.0,1.91580219]
[1740409226087,0.14629611,94816.0,94815.0,1.91580219]
[1740409227351,0.29629611,94816.0,94815.0,2.01844788]
[1740409227531,0.29629611,94816.0,94815.0,1.91580219]
[1740409228017,0.28354629,94816.0,94815.0,1.91580219]
[1740409228225,0.0926982,94825.0,94815.0,1.91580219]
[1740409228435,0.001,94816.0,94815.0,1.91580219]
[1740409228647,0.001,94816.0,94815.0,1.96300219]
[1740409228858,0.001,94816.0,94815.0,2.06564788]
[1740409229282,0.0926982,94825.0,94815.0,2.25119357]
[1740409229497,0.0016994,94824.0,94816.0,0.10264569]
[1740409229719,0.0016994,94824.0,94816.0,0.42404569]
[1740409229923,0.08188077,94825.0,94816.0,0.6107001]
[1740409230162,0.08188077,94825.0,94817.0,0.10164569]
[1740409230650,0.08188077,94825.0,94818.0,0.0827]
[1740409231083,0.08188077,94825.0,94818.0,0.29874995]
[1740409231292,0.08188077,94825.0,94819.0,0.3214]
[1740409231467,0.08188077,94825.0,94820.0,0.10264569]
[1740409231736,0.001,94824.0,94820.0,0.10264569]
[1740409231942,0.08188077,94825.0,94820.0,0.31692022]
[1740409231943,0.07096703,94825.0,94820.0,0.31692022]
[1740409232157,0.210896,94834.0,94820.0,0.31692022]
[1740409232370,0.15,94836.0,94820.0,0.31692022]
[1740409232586,0.15,94845.0,94821.0,0.06674522]
[1740409232796,0.15,94863.0,94821.0,0.06674522]
[1740409232981,0.15,94836.0,94821.0,0.29747141]
[1740409233249,0.210889,94837.0,94821.0,0.29747141]
[1740409233250,0.158165,94838.0,94821.0,0.29747141]
[1740409233469,0.001,94825.0,94821.0,0.29747141]
[1740409233892,0.13990933,94840.0,94821.0,0.29747141]
[1740409234110,0.158159,94841.0,94822.0,0.10264569]
[1740409234313,0.210852,94853.0,94822.0,0.10264569]
[1740409234519,0.01454085,94869.0,94822.0,0.291871]
[1740409234729,0.01454085,94867.0,94822.0,0.291871]
[1740409234947,0.01454085,94865.0,94822.0,0.291871]
[1740409235161,0.158157,94843.0,94823.0,0.08657961]
[1740409235372,0.210871,94845.0,94823.0,0.08657961]
[1740409235589,0.158147,94849.0,94824.0,0.00074545]
[1740409235796,0.15816,94841.0,94823.0,0.31020464]
[1740409236006,0.3259,94869.0,94824.0,0.08831298]
[1740409236007,0.15,94840.0,94824.0,0.08831298]
[1740409236248,0.13687401,94840.0,94824.0,0.08831298]
[1740409236460,0.13687401,94840.0,94825.0,0.00074554]
[1740409236870,0.13687401,94840.0,94825.0,0.32214554]
[1740409237077,0.210827,94865.0,94827.0,0.0773]
[1740409237280,0.291486,94883.0,94829.0,0.0773]
[1740409237500,0.15813,94859.0,94830.0,0.4247905]
[1740409237715,0.08612672,94882.0,94830.0,0.42404569]
[1740409237920,0.0771,94869.0,94830.0,0.21652053]
[1740409238133,0.01454085,94864.0,94831.0,0.03389205]
[1740409238342,0.15,94862.0,94831.0,0.03389205]
[1740409238548,0.0771,94869.0,94831.0,0.23415725]
[1740409238769,0.15,94843.0,94831.0,0.23415725]
[1740409238980,0.158147,94849.0,94829.0,0.0773]
[1740409239191,0.15,94848.0,94831.0,0.18439607]
[1740409239435,0.15,94848.0,94832.0,0.03067961]
[1740409239882,0.15,94848.0,94832.0,0.67319319]
[1740409240091,0.00184492,94876.0,94832.0,0.6417684]
[1740409240298,0.01454085,94873.0,94832.0,0.6417684]
[1740409240560,0.210801,94876.0,94833.0,0.10339049]
[1740409240793,0.3259,94897.0,94844.0,0.0499]
[1740409241036,0.0797,94901.0,94847.0,0.0824]
[1740409241242,0.3754,94905.0,94856.0,0.0824]
[1740409241243,0.21077,94890.0,94856.0,0.0824]
[1740409241453,0.3259,94905.0,94857.0,0.3214]
[1740409241454,0.210774,94889.0,94857.0,0.3214]
[1740409241659,0.3259,94905.0,94858.0,0.15145388]
[1740409241788,0.3259,94905.0,94859.0,0.0465]
[1740409242002,0.21259627,94898.0,94860.0,0.3214]
[1740409242199,0.158094,94881.0,94860.0,0.3214]
[1740409242436,0.15,94880.0,94860.0,0.55228852]
[1740409242608,0.15,94880.0,94861.0,0.09169243]
[1740409242812,0.15,94876.0,94861.0,0.09169243]
[1740409243024,0.01454085,94875.0,94861.0,0.65386594]
[1740409243224,0.210799,94877.0,94861.0,0.65386594]
[1740409243423,0.00013027,94881.0,94861.0,0.65386594]
[1740409243424,0.01454085,94876.0,94861.0,0.65386594]
[1740409243705,0.15,94880.0,94862.0,0.08315741]
[1740409243910,0.00013027,94881.0,94876.0,0.01246532]
[1740409244119,0.00013027,94881.0,94862.0,0.08315741]
[1740409244120,0.00013027,94881.0,94862.0,0.35277124]
[1740409244301,0.13753468,94875.0,94862.0,0.35277124]
[1740409245152,0.00013027,94881.0,94862.0,0.35277124]
[1740409245365,0.01454085,94878.0,94863.0,0.08548794]
[1740409245542,0.01454085,94879.0,94863.0,0.08548794]
[1740409245815,0.01454085,94879.0,94863.0,0.31958319]
[1740409246022,0.15822227,94881.0,94863.0,0.31958319]
[1740409246451,0.15013027,94881.0,94863.0,0.31958319]
[1740409246663,0.15,94879.0,94864.0,0.07382914]
[1740409247164,0.15,94880.0,94864.0,0.25309246]
[1740409247410,0.158099,94877.0,94864.0,0.25309246]
[1740409247622,0.15,94877.0,94864.0,0.25309246]
[1740409247825,0.00013027,94881.0,94864.0,0.25309246]
[1740409248085,0.29695248,94879.0,94865.0,0.06718007]
[1740409248334,0.13885648,94879.0,94865.0,0.06718007]
[1740409248561,0.13885648,94879.0,94865.0,0.2843859]
[1740409249077,0.00013027,94881.0,94865.0,0.2843859]
[1740409249311,0.00013027,94881.0,94872.0,0.08428194]
[1740409249509,0.00013027,94881.0,94873.0,0.23946602]
[1740409249720,0.00013027,94881.0,94873.0,0.2387228]
[1740409249928,0.09261978,94905.0,94873.0,0.39424143]
[1740409250135,0.210739,94904.0,94873.0,0.29159574]
[1740409250349,0.15,94893.0,94873.0,0.29159574]
[1740409250557,0.15,94887.0,94874.0,0.03522157]
[1740409250737,0.15,94889.0,94874.0,0.03522157]
[1740409250989,0.15,94889.0,94874.0,0.17330138]
[1740409252000,0.0017024,94911.0,94890.0,0.0476]
[1740409252249,0.07938521,94902.0,94891.0,0.00074314]
[1740409252416,0.15,94900.0,94890.0,0.20648215]
[1740409252630,0.07938521,94902.0,94891.0,0.02064822]
[1740409252866,0.15,94900.0,94891.0,0.02064822]
[1740409253485,0.15,94898.0,94891.0,0.02064822]
[1740409253631,0.15,94891.0,94890.0,0.15888215]
[1740409254012,0.210735,94906.0,94877.0,0.09035841]
[1740409254228,0.158069,94895.0,94877.0,0.0452]
[1740409254431,0.0017024,94911.0,94878.0,0.05794837]
[1740409254432,0.210737,94905.0,94878.0,0.05794837]
[1740409254628,0.01454085,94910.0,94878.0,0.05794837]
[1740409254996,0.158089,94883.0,94878.0,0.13244602]
[1740409255272,0.0016984,94887.0,94877.0,0.08934905]
[1740409255495,0.0016984,94887.0,94878.0,0.12281416]
[1740409255737,0.0016984,94887.0,94877.0,0.16304938]
[1740409255910,0.158074,94893.0,94892.0,0.01089759]
[1740409256136,0.15,94892.0,94878.0,0.02433494]
[1740409257182,0.15,94905.0,94878.0,0.02433494]
[1740409257354,0.210747,94901.0,94878.0,0.02433494]
[1740409257595,0.15,94893.0,94879.0,0.05890843]
[1740409257986,0.308071,94894.0,94893.0,0.01180644]
[1740409258220,0.158094,94880.0,94879.0,0.07781178]
[1740409258412,0.16454085,94894.0,94866.0,0.11879772]
[1740409258413,0.210801,94877.0,94866.0,0.11879772]
[1740409258629,0.15,94877.0,94866.0,0.0757]
[1740409258852,0.15,94892.0,94866.0,0.11879772]
[1740409259053,0.308116,94867.0,94866.0,0.04309772]
[1740409259466,0.308119,94865.0,94864.0,0.03847965]
[1740409259666,0.308119,94865.0,94864.0,0.00097947]
[1740409260074,0.29721325,94865.0,94864.0,0.04261197]
[1740409260284,0.15,94865.0,94864.0,0.04261197]
[1740409260908,0.308119,94865.0,94864.0,0.04261197]
[1740409261113,0.15,94865.0,94864.0,0.04261197]
[1740409261313,0.2,94913.0,94864.0,0.04261197]
[1740409261555,0.0781,94906.0,94865.0,0.00074398]
[1740409261764,0.158107,94873.0,94864.0,0.04261197]
[1740409261969,0.01454085,94901.0,94864.0,0.04261197]
[1740409261970,0.210772,94889.0,94864.0,0.04261197]
[1740409262171,0.210754,94898.0,94864.0,0.04261197]
[1740409262381,0.0343544,94910.0,94864.0,0.04261197]
[1740409262382,0.158119,94865.0,94864.0,0.04261197]
[1740409263323,0.25325985,94865.0,94864.0,9.7e-07]
[1740409263657,0.158164,94838.0,94837.0,0.076601]
[1740409263868,0.15820737,94838.0,94837.0,0.0451323]
[1740409264073,0.15,94837.0,94820.0,0.08194764]
[1740409264281,0.15,94837.0,94821.0,0.10264569]
[1740409264585,0.15,94826.0,94821.0,0.15092675]
[1740409265218,0.158191,94822.0,94821.0,0.04828106]
[1740409265657,0.308191,94822.0,94821.0,0.04828106]
[1740409265935,0.15,94821.0,94820.0,0.0008497]
[1740409266166,0.15184564,94821.0,94820.0,0.0008497]
[1740409266412,0.15,94821.0,94820.0,0.0008497]
[1740409266650,0.15,94821.0,94820.0,0.10349539]
[1740409266887,0.0829,94848.0,94820.0,0.139979]
[1740409267101,0.09243369,94854.0,94822.0,0.0495]
[1740409267308,0.09243369,94854.0,94822.0,0.15214569]
[1740409267527,0.09243369,94854.0,94827.0,0.0756]
[1740409267744,0.09243369,94854.0,94828.0,0.49673445]
[1740409267958,0.09243369,94854.0,94828.0,0.51598961]